Workbook

Sheet 결산
A1: 2016학년도 학교회계 세입세출결산서 (회계연도 2016년 3월 1일 ~ 2017년 2월 28일)
A4: □ 세입
I5: 단위 : RMB(￥)
A6: 구 분 | C6: 예산액 | D6: 이월등증감액 | E6: 예산현액 | F6: 징수결정액 | G6: 수납액 | H6: 불납결손액 | I6: 미수납액
C7: (A) | D7: (B) | E7: (C=A+B) | F7: (D) | G7: (E) | H7: (F) | I7: (G=D-E-F)
A8: 학부모부담수입 | C8: =C9+C10+C12 -> 8,769,398 | E8: =E9+E10+E12 -> 8,769,398 | F8: =F9+F10+F12 -> 8,769,398.00 | G8: =G9+G10+G12 -> 8,585,722.00 | H8: 0 | I8: =I9+I10+I12 -> 183,676.00
A9: - | B9: 입학금 | C9: 690,000 | E9: 690,000 | F9: 690,000.00 | G9: 690,000.00
A10: - | B10: 수업료 | C10: 5,704,523 | E10: 5,704,523 | F10: 5,704,523.00 | G10: 5,555,391.00 | H10: 0 | I10: 152,758.00
A11: - | B11: 학교운영지원비
A12: - | B12: 수익자부담경비 | C12: 2,374,875 | E12: 2,374,875 | F12: 2,374,875.00 | G12: 2,340,331.00 | H12: 0 | I12: 30,918.00
A13: 교육부지원금 | C13: =SUM(C14:C20) -> 18,492,218 | E13: =SUM(E14:E20) -> 18,492,218 | F13: =SUM(F14:F20) -> 18,492,217.81 | G13: =SUM(G14:G20) -> 18,492,217.81
A14: - | B14: 교직원인건비 | C14: 2,629,372 | E14: 2,629,372 | F14: 2,629,372.27 | G14: 2,629,372.27
A15: - | B15: 운영비 | C15: 1,463,900 | E15: 1,463,900 | F15: 1,463,899.69 | G15: 1,463,899.69
A16: - | B16: 임차료 | C16: 360,752 | E16: 360,752 | F16: 360,752.42 | G16: 360,752.42
A17: - | B17: 저소득층자녀지원 | C17: 199,599 | E17: 199,599 | F17: 199,599.33 | G17: 199,599.33
A18: - | B18: 방과후학교지원 | C18: 66,577 | E18: 66,577 | F18: 66,577.25 | G18: 66,577.25
A19: - | B19: 시설(대수선)비 | C19: 12,954,929 | E19: 12,954,929 | F19: 12,954,929.40 | G19: 12,954,929.40
A20: - | B20: 기타교육부지원금 | C20: 817,087 | E20: 817,087 | F20: 817,087.45 | G20: 817,087.45
A21: 자체수입 | C21: 81,664 | E21: 81,664 | F21: 81,664.29 | G21: 81,664.29
A22: - | B22: 사용료및수수료 | C22: 18,315 | E22: 18,315 | F22: 18,315.00 | G22: 18,315.00
A23: - | B23: 잡수입(예금이자) | C23: 63,349 | E23: 63,349 | F23: 63,349.29 | G23: 63,349.29
A24: 전입금 및 지원금
A25: - | B25: 학교발전기금전입금
A26: - | B26: 법인전입금
A27: - | B27: 기타지원금
A28: 기타수입 | C28: =SUM(C29:C31) -> 8,602,110 | D28: =SUM(D29:D31) -> 27,160,415 | E28: 35,762,524 | F28: 35,762,524.11 | G28: 35,762,524.53
A29: - | B29: 과년도 수입 | C29: 52,912 | E29: 52,912 | F29: 52,912.00 | G29: 52,912.00
A30: - | B30: 이월금(순세계잉여금) | D30: 1,851,200 | E30: 1,851,200 | F30: 1,851,200.11 | G30: 1,851,200.11
A31: - | B31: 적립금 | C31: 8,549,198 | D31: 25,309,215 | E31: =D31+C31 -> 33,858,412 | F31: 33,858,412.00 | G31: 33,858,412.42
A32: - | B32: 환차익
A33: 합 계 | C33: 35,945,390 | D33: 27,160,415 | E33: 63,105,804 | F33: 63,105,804.21 | G33: 62,922,128.63 | I33: 183,676.00
A45: □ 세출
I46: 단위 : RMB(￥)
A47: 구 분 | C47: 예산액 | D47: 이월등증감액 | E47: 수납액 | F47: 지출액 | G47: 다음년도이월액 | I47: 불용액
C48: (A) | D48: (B) | E48: (C=A+B) | F48: (D) | G48: (E) | I48: (F=C-D-E)
A49: 인건비 | C49: =SUM(C50:C51) -> 8,461,125 | E49: =C49 -> 8,461,125 | F49: =SUM(F50:F51) -> 7,661,959.61 | I49: =SUM(I50:I51) -> 799,165.36
A50: - 교원 | C50: 7,358,941 | E50: =C50 -> 7,358,941 | F50: 6,634,265.88 | I50: =E50-F50 -> 724,675.34
A51: - 직원 및 계약교직원 | C51: 1,102,184 | E51: =C51 -> 1,102,184 | F51: 1,027,693.73 | I51: =E51-F51 -> 74,490.02
A52: - 퇴직적립금
A53: 학교운영비 | C53: =SUM(C54:C57) -> 4,030,363 | E53: =C53 -> 4,030,363 | F53: =SUM(F54:F57) -> 3,058,648.89 | I53: =SUM(I54:I57) -> 779,852.87
A54: - 일반운영비 | C54: 1,669,571 | E54: 1,669,571 | F54: 1,328,755.28 | I54: =C54-F54 -> 340,815.95
A55: - 교수학습활동비 | C55: 1,903,220 | E55: 1,903,220 | F55: 1,314,578.09 | G55: 191,861.08 | I55: =E55-F55-G55 -> 396,781.02
A56: - 학생복리비 | C56: 351,071 | E56: 351,071 | F56: 314,334.76 | I56: 36,736.66
A57: - 업무추진비 | C57: 106,500 | E57: 106,500 | F57: 100,980.76 | I57: 5,519.24
A58: 자산취득비 | C58: =C59 -> 775,667 | E58: 775,667 | F58: =F59 -> 753,384.34 | I58: =I59 -> 22,282.66
A59: - 자산취득비 | C59: 775,667 | E59: 775,667 | F59: 753,384.34 | I59: =C59-F59 -> 22,282.66
A60: 시설(대수선)비 | C60: =SUM(C61:C62) -> 22,038,060 | D60: =D61 -> 25,309,215 | E60: =SUM(E61:E62) -> 47,347,275 | F60: =SUM(F61:F62) -> 39,106,015.53 | I60: =I62 -> 472,803.91
A61: - 시설비 | C61: =E61-D61 -> 21,504,127 | D61: 25,309,215 | E61: 46,813,342 | F61: 39,044,886.44 | G61: =E61-F61 -> 7,768,455.38
A62: - 대수선비 | C62: 533,933 | E62: 533,933 | F62: 61,129.09 | I62: =E62-F62 -> 472,803.91
A63: 수익자부담경비 | C63: =SUM(C65:C67) -> 2,307,699 | E63: =SUM(E65:E67) -> 2,307,699 | F63: 2,481,522 | I63: -173,823.00
A64: - 현장학습비
A65: - 학교급식비 | C65: 937,903 | E65: =C65 -> 937,903 | F65: 963,290.00 | I65: =E65-F65 -> -25,387.00
A66: - 방과후학교교육활동비 | C66: 189,271 | E66: =C66 -> 189,271 | F66: 189,271.00 | I66: =E66-F66 -> 0.00
A67: - 기타수익자부담경비 | C67: =E67 -> 1,180,525 | E67: 1,180,525 | F67: 1,328,961.00 | I67: -148,436.00
A68: 예비비및기타
A69: - 예비비
A70: - 적립금
A71: - 환차손
A72: 합 계 | C72: =C63+C60+C58+C53+C49 -> 37,612,914 | E72: =E63+E60+E58+E53+E49 -> 62,922,129 | F72: 53,061,530.37 | G72: =G61+G55 -> 7,960,316.46 | I72: 1,900,281.80

Sheet 미수납액
A1: 2016학년도 수익자부담경비 미수납액
A3: 연번 | B3: 미수납자 | C3: 학비 | D3: 급간식비 | E3: 스쿨버스비 | F3: 합계
A4: 1 | B4: 서효정 | C4: 19,508 | D4: 0 | E4: 0 | F4: =C4+D4+E4 -> 19,508
A5: 2 | B5: 서효민 | C5: 25,000 | D5: 0 | E5: 0 | F5: =C5+D5+E5 -> 25,000
A6: 3 | B6: 오세원 | C6: 7,500 | D6: 790 | E6: 1,023 | F6: 9,313
A7: 4 | B7: 정시원 | C7: 5,000 | D7: 790 | E7: 1,023 | F7: 6,813
A8: 5 | B8: 장효준 | C8: 8,750 | D8: 790 | E8: 1,023 | F8: 10,563
A9: 6 | B9: 이현수 | C9: 12,500 | D9: 2,160 | E9: 2,790 | F9: 17,450
A10: 7 | B10: 조승완 | C10: 7,500 | D10: 790 | E10: 1,023 | F10: 9,313
A11: 8 | B11: 임희승 | C11: 12,000 | D11: 2,160 | E11: 2,790 | F11: 16,950
A12: 9 | B12: 배다빈 | C12: 22,500 | D12: 2,905 | E12: 961 | F12: 26,366
A13: 10 | B13: 임가연 | C13: 15,000 | D13: 2,160 | E13: 2,790 | F13: 19,950
A14: 11 | B14: 정민규 | C14: 17,500 | D14: 2,160 | E14: 2,790 | F14: 22,450
C15: =SUM(C4:C14) -> 152,758 | D15: =SUM(D4:D14) -> 14,705 | E15: =SUM(E4:E14) -> 16,213 | F15: 183,676
A17: *2017년 3월부터 2016학년도 과년도 수입으로 징수
